[Event "*** SCC Grand Prix: Titled Tuesday Blitz"]
[Site "Chess.com"]
[Date "2020.07.07"]
[Round "9"]
[White "KaspMagAlpha"]
[Black "yuliagok"]
[Result "1-0"]
[WhiteElo "2245"]
[BlackElo "2110"]
[TimeControl "180+1"]
[EndTime "11:48:08 PDT"]
[Termination "KaspMagAlpha won by resignation"]

1. d4 {[%clk 0:03:00.9]} 1... Nf6 {[%clk 0:02:58.5]} 2. c4 {[%clk 0:03:00.3]}
2... e6 {[%clk 0:02:57.4]} 3. Nf3 {[%clk 0:02:59.8]} 3... b6 {[%clk 0:02:56.4]}
4. a3 {[%clk 0:02:56.7]} 4... g6 {[%clk 0:02:51.8]} 5. g3 {[%clk 0:02:56.4]}
5... Bb7 {[%clk 0:02:50.4]} 6. Bg2 {[%clk 0:02:56.2]} 6... Bg7 {[%clk
0:02:50.2]} 7. O-O {[%clk 0:02:50.6]} 7... O-O {[%clk 0:02:48.8]} 8. Nc3 {[%clk
0:02:46.4]} 8... d6 {[%clk 0:02:44.8]} 9. Bg5 {[%clk 0:02:42.4]} 9... h6 {[%clk
0:02:42.4]} 10. Bxf6 {[%clk 0:02:41]} 10... Qxf6 {[%clk 0:02:38.9]} 11. e3
{[%clk 0:02:39.2]} 11... Nd7 {[%clk 0:02:36]} 12. b4 {[%clk 0:02:37.9]} 12... a5
{[%clk 0:02:29.8]} 13. b5 {[%clk 0:02:34.8]} 13... Rad8 {[%clk 0:02:24.8]} 14.
Rc1 {[%clk 0:02:29.5]} 14... g5 {[%clk 0:02:15.9]} 15. Ne5 {[%clk 0:02:02.8]}
15... Bxg2 {[%clk 0:02:13]} 16. Nxd7 {[%clk 0:02:01.6]} 16... Rxd7 {[%clk
0:02:10.7]} 17. Kxg2 {[%clk 0:02:01]} 17... d5 {[%clk 0:02:07]} 18. cxd5 {[%clk
0:01:59.3]} 18... exd5 {[%clk 0:02:06.1]} 19. Ne2 {[%clk 0:01:52.2]} 19... Qe6
{[%clk 0:02:04.4]} 20. Rc3 {[%clk 0:01:46.3]} 20... f5 {[%clk 0:02:02.1]} 21.
Qc2 {[%clk 0:01:44.1]} 21... Rff7 {[%clk 0:01:55.7]} 22. Rc1 {[%clk 0:01:43.1]}
22... Kh7 {[%clk 0:01:33.4]} 23. Rc6 {[%clk 0:01:27.8]} 23... Qe7 {[%clk
0:01:28.1]} 24. g4 {[%clk 0:01:23.6]} 24... Qe4+ {[%clk 0:01:25.3]} 25. Qxe4
{[%clk 0:01:16.7]} 25... fxe4 {[%clk 0:01:14.5]} 26. Ng3 {[%clk 0:01:16.2]}
26... Bf8 {[%clk 0:01:13.6]} 27. a4 {[%clk 0:01:14.5]} 27... Bd6 {[%clk
0:01:09.7]} 28. Nf5 {[%clk 0:01:12.2]} 28... Rxf5 {[%clk 0:01:07.1]} 29. gxf5
{[%clk 0:01:11.3]} 29... Kg7 {[%clk 0:01:05.9]} 30. f3 {[%clk 0:00:51.5]} 30...
Kf6 {[%clk 0:00:59.3]} 31. fxe4 {[%clk 0:00:48]} 31... dxe4 {[%clk 0:00:58.5]}
32. Rf1 {[%clk 0:00:46.7]} 32... h5 {[%clk 0:00:57.1]} 33. h3 {[%clk 0:00:45.8]}
33... g4 {[%clk 0:00:54.8]} 34. hxg4 {[%clk 0:00:45.1]} 34... Rg7 {[%clk
0:00:50]} 35. Rf4 {[%clk 0:00:35]} 35... Rxg4+ {[%clk 0:00:45.5]} 36. Rxg4
{[%clk 0:00:33.2]} 36... hxg4 {[%clk 0:00:44.7]} 37. Rc1 {[%clk 0:00:27.9]}
37... Kxf5 {[%clk 0:00:43.8]} 38. Rf1+ {[%clk 0:00:27.6]} 38... Ke6 {[%clk
0:00:43.1]} 39. Rh1 {[%clk 0:00:26.2]} 39... Kd5 {[%clk 0:00:42]} 40. Rh4 {[%clk
0:00:24.6]} 40... g3 {[%clk 0:00:37]} 41. Rg4 {[%clk 0:00:21.6]} 41... Kc4
{[%clk 0:00:26.4]} 42. Rxe4 {[%clk 0:00:20.3]} 42... Kb4 {[%clk 0:00:24.7]} 43.
d5+ {[%clk 0:00:17.4]} 43... Kc5 {[%clk 0:00:24]} 44. Rh4 {[%clk 0:00:16.8]}
44... Kxd5 {[%clk 0:00:22]} 45. Kf3 {[%clk 0:00:17.2]} 45... c6 {[%clk
0:00:18.4]} 46. Rh5+ {[%clk 0:00:16.4]} 46... Ke6 {[%clk 0:00:16.2]} 47. bxc6
{[%clk 0:00:16.6]} 47... Bc7 {[%clk 0:00:14.9]} 48. Rh6+ {[%clk 0:00:16.3]}
48... Kd5 {[%clk 0:00:14.3]} 49. Rg6 {[%clk 0:00:16.8]} 49... Kc5 {[%clk
0:00:13.8]} 50. e4 {[%clk 0:00:16]} 50... b5 {[%clk 0:00:12.7]} 51. Rg5+ {[%clk
0:00:14.6]} 51... Kxc6 {[%clk 0:00:11.8]} 52. Rxb5 {[%clk 0:00:14.9]} 52... Kd6
{[%clk 0:00:10.5]} 53. Kxg3 {[%clk 0:00:13.3]} 53... Ke6+ {[%clk 0:00:10.4]} 54.
Kf3 {[%clk 0:00:14.2]} 54... Kd6 {[%clk 0:00:09.3]} 55. Ke3 {[%clk 0:00:15.1]}
55... Kc6 {[%clk 0:00:08.9]} 56. Kd4 {[%clk 0:00:15.4]} 56... Bb6+ {[%clk
0:00:08.9]} 57. Kc4 {[%clk 0:00:14.4]} 57... Bc7 {[%clk 0:00:08.5]} 58. e5
{[%clk 0:00:13.6]} 58... Bd8 {[%clk 0:00:07.1]} 59. Kd4 {[%clk 0:00:13.5]} 59...
Kd7 {[%clk 0:00:06.7]} 60. Kd5 {[%clk 0:00:13.6]} 60... Bc7 {[%clk 0:00:05.6]}
61. e6+ {[%clk 0:00:13.2]} 61... Ke7 {[%clk 0:00:04.9]} 62. Rb7 {[%clk
0:00:13.7]} 62... Kd8 {[%clk 0:00:04.4]} 63. Kc6 {[%clk 0:00:13.6]} 63... Bf4
{[%clk 0:00:04]} 64. Rf7 {[%clk 0:00:12.4]} 64... Ke8 {[%clk 0:00:03.6]} 65.
Rxf4 {[%clk 0:00:11.9]} 65... Ke7 {[%clk 0:00:02.4]} 66. Kd5 {[%clk 0:00:12.8]}
66... Ke8 {[%clk 0:00:01.6]} 67. Rc4 {[%clk 0:00:13.7]} 1-0

[Event "*** SCC Grand Prix: Titled Tuesday Blitz"]
[Site "Chess.com"]
[Date "2020.07.07"]
[Round "9"]
[White "BakaPG"]
[Black "viktorskliarov"]
[Result "1-0"]
[WhiteElo "2660"]
[BlackElo "2519"]
[TimeControl "180+1"]
[EndTime "11:48:10 PDT"]
[Termination "BakaPG won by checkmate"]

1. e4 {[%clk 0:03:00.9]} 1... c5 {[%clk 0:02:59.1]} 2. Nf3 {[%clk 0:03:00.2]}
2... Nc6 {[%clk 0:02:58.6]} 3. Nc3 {[%clk 0:02:59.4]} 3... Nf6 {[%clk 0:02:58]}
4. Bb5 {[%clk 0:02:56.8]} 4... Nd4 {[%clk 0:02:56.7]} 5. e5 {[%clk 0:02:52.1]}
5... Nxb5 {[%clk 0:02:56.3]} 6. Nxb5 {[%clk 0:02:50.7]} 6... Nd5 {[%clk
0:02:56.3]} 7. O-O {[%clk 0:02:47.2]} 7... a6 {[%clk 0:02:54.9]} 8. c4 {[%clk
0:02:44.4]} 8... Nb4 {[%clk 0:02:37.2]} 9. Nc3 {[%clk 0:02:42.6]} 9... g6 {[%clk
0:02:37.4]} 10. d4 {[%clk 0:02:34.9]} 10... cxd4 {[%clk 0:02:36.9]} 11. Nd5
{[%clk 0:02:33.1]} 11... Nxd5 {[%clk 0:02:16.3]} 12. cxd5 {[%clk 0:02:32.8]}
12... Bg7 {[%clk 0:02:16.8]} 13. d6 {[%clk 0:02:27.1]} 13... exd6 {[%clk
0:02:10.8]} 14. Bg5 {[%clk 0:02:24.1]} 14... Qa5 {[%clk 0:01:37.9]} 15. exd6
{[%clk 0:02:20.2]} 15... O-O {[%clk 0:01:37.2]} 16. Be7 {[%clk 0:02:19.6]} 16...
Re8 {[%clk 0:01:33.2]} 17. Qb3 {[%clk 0:02:07.1]} 17... Qf5 {[%clk 0:00:55.1]}
18. Rad1 {[%clk 0:02:01.4]} 18... b5 {[%clk 0:00:51.7]} 19. Nxd4 {[%clk
0:01:59.4]} 19... Qg4 {[%clk 0:00:51.4]} 20. Nc2 {[%clk 0:01:50.9]} 20... Bb7
{[%clk 0:00:49.8]} 21. Ne3 {[%clk 0:01:50.6]} 21... Qe6 {[%clk 0:00:45.3]} 22.
Qxe6 {[%clk 0:01:43.3]} 22... fxe6 {[%clk 0:00:44.7]} 23. b3 {[%clk 0:01:43.5]}
23... Rac8 {[%clk 0:00:43.8]} 24. Rc1 {[%clk 0:01:43]} 24... Bb2 {[%clk
0:00:43.5]} 25. Rb1 {[%clk 0:01:40.4]} 25... Bd4 {[%clk 0:00:35.7]} 26. Rfe1
{[%clk 0:01:32]} 26... Kf7 {[%clk 0:00:32.1]} 27. h4 {[%clk 0:01:30.3]} 27... h5
{[%clk 0:00:29.2]} 28. Rbd1 {[%clk 0:01:29.4]} 28... e5 {[%clk 0:00:27.6]} 29.
Kh2 {[%clk 0:01:02.8]} 29... Rc3 {[%clk 0:00:27.1]} 30. Rd2 {[%clk 0:00:57.8]}
30... Rec8 {[%clk 0:00:26.7]} 31. Red1 {[%clk 0:00:48.7]} 31... Ke6 {[%clk
0:00:21.2]} 32. Rxd4 {[%clk 0:00:46.5]} 32... exd4 {[%clk 0:00:21.4]} 33. Rxd4
{[%clk 0:00:46.5]} 33... Rxe3 {[%clk 0:00:21.9]} 34. fxe3 {[%clk 0:00:45.7]}
34... Rc2 {[%clk 0:00:22.5]} 35. Kg1 {[%clk 0:00:41.8]} 35... Rxg2+ {[%clk
0:00:22.1]} 36. Kf1 {[%clk 0:00:42.1]} 36... Rxa2 {[%clk 0:00:22.7]} 37. Rf4
{[%clk 0:00:42.1]} 37... Bg2+ {[%clk 0:00:19.2]} 38. Ke1 {[%clk 0:00:41.5]}
38... Bh3 {[%clk 0:00:18.5]} 39. Rf6+ {[%clk 0:00:39.6]} 39... Kd5 {[%clk
0:00:18.5]} 40. Rxg6 {[%clk 0:00:39.3]} 40... Bg4 {[%clk 0:00:18.6]} 41. Kf1
{[%clk 0:00:35.5]} 41... Ke4 {[%clk 0:00:18.7]} 42. Bg5 {[%clk 0:00:29.2]} 42...
Kf3 {[%clk 0:00:18.6]} 43. Rf6+ {[%clk 0:00:28.9]} 43... Kg3 {[%clk 0:00:18.8]}
44. Ke1 {[%clk 0:00:16.9]} 44... Re2+ {[%clk 0:00:16]} 45. Kf1 {[%clk 0:00:17]}
45... Rd2 {[%clk 0:00:15.3]} 46. Bf4+ {[%clk 0:00:15.7]} 46... Kxh4 {[%clk
0:00:15]} 47. e4 {[%clk 0:00:15.5]} 47... Rd3 {[%clk 0:00:12]} 48. b4 {[%clk
0:00:13.2]} 48... Kh3 {[%clk 0:00:09.3]} 49. Kf2 {[%clk 0:00:12.7]} 49... Be6
{[%clk 0:00:08.3]} 50. Ke2 {[%clk 0:00:11.8]} 50... Rd4 {[%clk 0:00:07.1]} 51.
Ke3 {[%clk 0:00:11.5]} 51... Rd1 {[%clk 0:00:07]} 52. Ke2 {[%clk 0:00:10.2]}
52... Bg4+ {[%clk 0:00:06.8]} 53. Ke3 {[%clk 0:00:09.8]} 53... Kg2 {[%clk
0:00:06.7]} 54. e5 {[%clk 0:00:09.6]} 54... h4 {[%clk 0:00:06.8]} 55. Rg6 {[%clk
0:00:09.9]} 55... Kh3 {[%clk 0:00:06.6]} 56. Ke4 {[%clk 0:00:09.1]} 56... Re1+
{[%clk 0:00:05.1]} 57. Be3 {[%clk 0:00:08.8]} 57... Rd1 {[%clk 0:00:05.1]} 58.
Bd4 {[%clk 0:00:08.1]} 58... Be6 {[%clk 0:00:04.4]} 59. Rxe6 {[%clk 0:00:07.4]}
59... dxe6 {[%clk 0:00:04]} 60. d7 {[%clk 0:00:06]} 60... Re1+ {[%clk
0:00:03.9]} 61. Kd3 {[%clk 0:00:05.6]} 61... Rd1+ {[%clk 0:00:03.7]} 62. Ke3
{[%clk 0:00:05.8]} 62... Kg2 {[%clk 0:00:02.5]} 63. d8=Q {[%clk 0:00:04.9]}
63... h3 {[%clk 0:00:03.4]} 64. Qg5+ {[%clk 0:00:04.9]} 64... Kh1 {[%clk
0:00:03.7]} 65. Qg4 {[%clk 0:00:04.7]} 65... Rd3+ {[%clk 0:00:02.4]} 66. Kxd3
{[%clk 0:00:04.5]} 66... h2 {[%clk 0:00:03.3]} 67. Qe2 {[%clk 0:00:04]} 67... a5
{[%clk 0:00:02.7]} 68. Qf1# {[%clk 0:00:04.3]} 1-0

[Event "*** SCC Grand Prix: Titled Tuesday Blitz"]
[Site "Chess.com"]
[Date "2020.07.07"]
[Round "9"]
[White "The_Machine04"]
[Black "Sofiia_Hryzlova"]
[Result "0-1"]
[WhiteElo "2250"]
[BlackElo "2129"]
[TimeControl "180+1"]
[EndTime "11:48:19 PDT"]
[Termination "Sofiia_Hryzlova won on time"]

1. d4 {[%clk 0:02:53.7]} 1... Nf6 {[%clk 0:02:57.8]} 2. Bg5 {[%clk 0:02:50.9]}
2... e6 {[%clk 0:02:53.6]} 3. Nd2 {[%clk 0:02:50]} 3... h6 {[%clk 0:02:52.7]} 4.
Bh4 {[%clk 0:02:42.3]} 4... d5 {[%clk 0:02:51.9]} 5. e3 {[%clk 0:02:41.7]} 5...
c5 {[%clk 0:02:43.6]} 6. c3 {[%clk 0:02:40.4]} 6... Nc6 {[%clk 0:02:39.1]} 7.
Bd3 {[%clk 0:02:39.8]} 7... b6 {[%clk 0:02:21.7]} 8. f4 {[%clk 0:02:38.6]} 8...
Be7 {[%clk 0:02:11.1]} 9. Ngf3 {[%clk 0:02:33.9]} 9... Bb7 {[%clk 0:02:05]} 10.
Ne5 {[%clk 0:02:18.5]} 10... Qc7 {[%clk 0:01:37.6]} 11. Qf3 {[%clk 0:02:15.6]}
11... g5 {[%clk 0:01:28.7]} 12. fxg5 {[%clk 0:02:07.8]} 12... hxg5 {[%clk
0:01:27.9]} 13. Bxg5 {[%clk 0:02:08.7]} 13... Nxe5 {[%clk 0:01:26.6]} 14. dxe5
{[%clk 0:02:04.9]} 14... Qxe5 {[%clk 0:01:25]} 15. Bf4 {[%clk 0:01:56.7]} 15...
Qh5 {[%clk 0:01:22.8]} 16. Qxh5 {[%clk 0:01:53.6]} 16... Nxh5 {[%clk 0:01:16]}
17. O-O {[%clk 0:01:50.7]} 17... Kd7 {[%clk 0:01:05.8]} 18. Rae1 {[%clk
0:01:42.5]} 18... Rag8 {[%clk 0:01:00.7]} 19. g3 {[%clk 0:01:34.3]} 19... f6
{[%clk 0:00:53.9]} 20. e4 {[%clk 0:01:02.2]} 20... e5 {[%clk 0:00:49.8]} 21. Be3
{[%clk 0:00:56]} 21... Nxg3 {[%clk 0:00:41.4]} 22. hxg3 {[%clk 0:00:48.8]} 22...
Rxg3+ {[%clk 0:00:39.2]} 23. Kf2 {[%clk 0:00:47.5]} 23... Rhh3 {[%clk
0:00:34.8]} 24. Rh1 {[%clk 0:00:35.6]} 24... d4 {[%clk 0:00:30.4]} 25. Rxh3
{[%clk 0:00:20.6]} 25... Rxh3 {[%clk 0:00:29]} 26. Kg2 {[%clk 0:00:20.7]} 26...
Rxe3 {[%clk 0:00:24]} 27. Rxe3 {[%clk 0:00:20.6]} 27... dxe3 {[%clk 0:00:24.9]}
28. Nc4 {[%clk 0:00:20.7]} 28... f5 {[%clk 0:00:16.7]} 29. Kf3 {[%clk
0:00:19.3]} 29... Ke6 {[%clk 0:00:15.4]} 30. Kxe3 {[%clk 0:00:17.7]} 30... Bg5+
{[%clk 0:00:14]} 31. Ke2 {[%clk 0:00:17.3]} 31... fxe4 {[%clk 0:00:14]} 32. Bc2
{[%clk 0:00:17.1]} 32... Bd5 {[%clk 0:00:13.7]} 33. b3 {[%clk 0:00:15.1]} 33...
b5 {[%clk 0:00:12.9]} 34. Ne3 {[%clk 0:00:14.1]} 34... Bxe3 {[%clk 0:00:11.5]}
35. Kxe3 {[%clk 0:00:15]} 35... Kf5 {[%clk 0:00:11.3]} 36. Bd1 {[%clk
0:00:14.7]} 36... a5 {[%clk 0:00:10.8]} 37. Be2 {[%clk 0:00:14.1]} 37... b4
{[%clk 0:00:10.2]} 38. c4 {[%clk 0:00:12.9]} 38... Bc6 {[%clk 0:00:10.2]} 39.
Bh5 {[%clk 0:00:12.5]} 39... a4 {[%clk 0:00:09.9]} 40. Bf7 {[%clk 0:00:12.2]}
40... axb3 {[%clk 0:00:09.5]} 41. axb3 {[%clk 0:00:13.1]} 41... Bb7 {[%clk
0:00:06.5]} 42. Bg8 {[%clk 0:00:12.9]} 42... Bc6 {[%clk 0:00:05.4]} 43. Bf7
{[%clk 0:00:11.5]} 43... Bd7 {[%clk 0:00:04]} 44. Bd5 {[%clk 0:00:10.8]} 44...
Kf6 {[%clk 0:00:03]} 45. Bb7 {[%clk 0:00:07.7]} 45... Be8 {[%clk 0:00:03.3]} 46.
Bd5 {[%clk 0:00:06.9]} 46... Bh5 {[%clk 0:00:03.8]} 47. Kd2 {[%clk 0:00:04.6]}
47... Bf3 {[%clk 0:00:03.7]} 48. Ke3 {[%clk 0:00:04.2]} 48... Kf5 {[%clk
0:00:04.1]} 49. Bf7 {[%clk 0:00:03.3]} 49... Bg2 {[%clk 0:00:04.1]} 50. Bg8
{[%clk 0:00:03.2]} 50... Bf3 {[%clk 0:00:05]} 51. Bh7+ {[%clk 0:00:03.4]} 51...
Kg4 {[%clk 0:00:05]} 52. Bxe4 {[%clk 0:00:02.8]} 52... Bd1 {[%clk 0:00:05.6]}
53. Bd5 {[%clk 0:00:01.6]} 53... Bxb3 {[%clk 0:00:06.1]} 54. Kd2 {[%clk
0:00:02.5]} 54... Kf4 {[%clk 0:00:05]} 55. Kd3 {[%clk 0:00:02.8]} 55... Ba2
{[%clk 0:00:05.9]} 56. Kc2 {[%clk 0:00:02.5]} 56... b3+ {[%clk 0:00:06.8]} 57.
Kb2 {[%clk 0:00:02.6]} 57... e4 {[%clk 0:00:07.6]} 58. Bf7 {[%clk 0:00:02]}
58... Kf3 {[%clk 0:00:08.1]} 59. Bh5+ {[%clk 0:00:01.8]} 59... Kf2 {[%clk
0:00:08.2]} 60. Bg6 {[%clk 0:00:02.7]} 60... e3 {[%clk 0:00:08.6]} 61. Bd3
{[%clk 0:00:02.7]} 61... e2 {[%clk 0:00:08.5]} 62. Bxe2 {[%clk 0:00:02.7]} 62...
Kxe2 {[%clk 0:00:09.4]} 63. Ka3 {[%clk 0:00:02.9]} 63... Kd1 {[%clk 0:00:09.8]}
64. Kb2 {[%clk 0:00:03.6]} 64... Kd2 {[%clk 0:00:09.8]} 65. Ka1 {[%clk
0:00:03.8]} 65... Kd3 {[%clk 0:00:08.5]} 66. Kb2 {[%clk 0:00:04.1]} 66... Kxc4
{[%clk 0:00:09]} 67. Ka1 {[%clk 0:00:04.4]} 67... Kb4 {[%clk 0:00:09.3]} 68. Kb2
{[%clk 0:00:04.5]} 68... c4 {[%clk 0:00:09.4]} 69. Ka1 {[%clk 0:00:05.1]} 69...
Bb1 {[%clk 0:00:09.5]} 70. Kxb1 {[%clk 0:00:04.9]} 70... Ka3 {[%clk 0:00:09.8]}
71. Ka1 {[%clk 0:00:04.3]} 71... c3 {[%clk 0:00:10]} 72. Kb1 {[%clk 0:00:05]}
72... b2 {[%clk 0:00:10]} 73. Kc2 {[%clk 0:00:04.8]} 73... Ka2 {[%clk
0:00:10.6]} 74. Kxc3 {[%clk 0:00:04.7]} 74... b1=Q {[%clk 0:00:11.5]} 75. Kc4
{[%clk 0:00:04.4]} 75... Qb2 {[%clk 0:00:12.4]} 0-1

[Event "*** SCC Grand Prix: Titled Tuesday Blitz"]
[Site "Chess.com"]
[Date "2020.07.07"]
[Round "9"]
[White "esrosenberg"]
[Black "boasovietica"]
[Result "0-1"]
[WhiteElo "2279"]
[BlackElo "2439"]
[TimeControl "180+1"]
[EndTime "11:48:20 PDT"]
[Termination "boasovietica won by checkmate"]

1. Nf3 {[%clk 0:03:00.8]} 1... d6 {[%clk 0:02:59.1]} 2. d4 {[%clk 0:02:59.3]}
2... Nf6 {[%clk 0:02:58.7]} 3. c4 {[%clk 0:02:59.5]} 3... g6 {[%clk 0:02:58.7]}
4. Nc3 {[%clk 0:02:58.9]} 4... Bg7 {[%clk 0:02:59.1]} 5. e4 {[%clk 0:02:59.5]}
5... O-O {[%clk 0:02:58.9]} 6. h3 {[%clk 0:03:00.1]} 6... c5 {[%clk 0:02:56.6]}
7. d5 {[%clk 0:03:00.2]} 7... e6 {[%clk 0:02:56.7]} 8. Bd3 {[%clk 0:03:00.6]}
8... exd5 {[%clk 0:02:57.1]} 9. exd5 {[%clk 0:03:01.5]} 9... Re8+ {[%clk
0:02:47.7]} 10. Be3 {[%clk 0:03:01.8]} 10... Bh6 {[%clk 0:02:36.7]} 11. O-O
{[%clk 0:03:01.9]} 11... Bxe3 {[%clk 0:02:36.5]} 12. fxe3 {[%clk 0:03:02.3]}
12... a6 {[%clk 0:02:31.3]} 13. Qd2 {[%clk 0:02:53.7]} 13... Nbd7 {[%clk
0:02:29.4]} 14. e4 {[%clk 0:02:47.9]} 14... Qe7 {[%clk 0:02:28.8]} 15. Rae1
{[%clk 0:02:13.1]} 15... Ne5 {[%clk 0:02:21.3]} 16. Nxe5 {[%clk 0:02:12.7]}
16... Qxe5 {[%clk 0:02:22.2]} 17. Bc2 {[%clk 0:01:37]} 17... Bd7 {[%clk
0:02:16.9]} 18. Qf2 {[%clk 0:01:34.7]} 18... Kg7 {[%clk 0:02:15.4]} 19. Qh4
{[%clk 0:01:29.9]} 19... Re7 {[%clk 0:02:00.3]} 20. Rf2 {[%clk 0:01:11]} 20...
Rae8 {[%clk 0:01:53.6]} 21. Ref1 {[%clk 0:01:11.2]} 21... Ng8 {[%clk 0:01:53.6]}
22. Ne2 {[%clk 0:00:35]} 22... Qxb2 {[%clk 0:01:35.9]} 23. Ng3 {[%clk
0:00:22.3]} 23... Qe5 {[%clk 0:01:28.1]} 24. Nf5+ {[%clk 0:00:13.9]} 24... gxf5
{[%clk 0:01:25.4]} 25. Rxf5 {[%clk 0:00:12.8]} 25... Bxf5 {[%clk 0:01:25.1]} 26.
Rxf5 {[%clk 0:00:13.3]} 26... Qd4+ {[%clk 0:01:20.8]} 27. Kh2 {[%clk 0:00:13.2]}
27... Re5 {[%clk 0:01:02.2]} 28. Qg3+ {[%clk 0:00:11.5]} 28... Kf8 {[%clk
0:00:56.8]} 29. Rf3 {[%clk 0:00:10.7]} 29... h6 {[%clk 0:00:45.9]} 30. Ba4
{[%clk 0:00:10.8]} 30... Rg5 {[%clk 0:00:43.3]} 31. Qf4 {[%clk 0:00:09.9]} 31...
Qe5 {[%clk 0:00:41.3]} 32. Bxe8 {[%clk 0:00:08.5]} 32... Kxe8 {[%clk 0:00:39.7]}
33. g3 {[%clk 0:00:08.1]} 33... Qxf4 {[%clk 0:00:37.4]} 34. gxf4 {[%clk
0:00:09]} 34... Rg7 {[%clk 0:00:36.6]} 35. e5 {[%clk 0:00:09.4]} 35... Kd7
{[%clk 0:00:35.9]} 36. f5 {[%clk 0:00:10.1]} 36... f6 {[%clk 0:00:32.6]} 37. e6+
{[%clk 0:00:09.9]} 37... Kc7 {[%clk 0:00:32.8]} 38. a4 {[%clk 0:00:09.8]} 38...
Ne7 {[%clk 0:00:32.7]} 39. h4 {[%clk 0:00:09.4]} 39... Rg4 {[%clk 0:00:32.5]}
40. Kh3 {[%clk 0:00:08.9]} 40... h5 {[%clk 0:00:32.1]} 41. a5 {[%clk 0:00:08.1]}
41... b6 {[%clk 0:00:18.1]} 42. axb6+ {[%clk 0:00:08.1]} 42... Kxb6 {[%clk
0:00:18.6]} 43. Rb3+ {[%clk 0:00:08.7]} 43... Ka7 {[%clk 0:00:19.2]} 44. Rc3
{[%clk 0:00:07.6]} 44... Nxf5 {[%clk 0:00:18.2]} 45. Rc1 {[%clk 0:00:08.1]}
45... Ne7 {[%clk 0:00:18]} 46. Rf1 {[%clk 0:00:07.6]} 46... f5 {[%clk
0:00:18.2]} 47. Rb1 {[%clk 0:00:06.9]} 47... f4 {[%clk 0:00:17.1]} 48. Rf1
{[%clk 0:00:05.9]} 48... Ng6 {[%clk 0:00:16.4]} 49. Re1 {[%clk 0:00:04.5]} 49...
Ne7 {[%clk 0:00:15.1]} 50. Re4 {[%clk 0:00:04.2]} 50... Kb7 {[%clk 0:00:15.1]}
51. Re1 {[%clk 0:00:03.1]} 51... Kc7 {[%clk 0:00:15.4]} 52. Ra1 {[%clk
0:00:03.6]} 52... f3 {[%clk 0:00:14.4]} 53. Rf1 {[%clk 0:00:03]} 53... Rf4
{[%clk 0:00:13.9]} 54. Kg3 {[%clk 0:00:03.4]} 54... Rf5 {[%clk 0:00:14.2]} 55.
Rxf3 {[%clk 0:00:03.5]} 55... Rxf3+ {[%clk 0:00:13.9]} 56. Kxf3 {[%clk
0:00:04.1]} 56... a5 {[%clk 0:00:14.4]} 57. Ke3 {[%clk 0:00:04.4]} 57... Nf5+
{[%clk 0:00:13.9]} 58. Kf4 {[%clk 0:00:05.1]} 58... Nxh4 {[%clk 0:00:14.1]} 59.
Kg5 {[%clk 0:00:05.7]} 59... a4 {[%clk 0:00:11.6]} 60. Kxh4 {[%clk 0:00:05.8]}
60... Kd8 {[%clk 0:00:11.8]} 61. Kg5 {[%clk 0:00:05.5]} 61... Ke7 {[%clk
0:00:12.1]} 62. Kxh5 {[%clk 0:00:05.7]} 62... a3 {[%clk 0:00:12.6]} 63. Kg4
{[%clk 0:00:05.6]} 63... a2 {[%clk 0:00:13.2]} 64. Kf5 {[%clk 0:00:06.5]} 64...
a1=Q {[%clk 0:00:13.3]} 65. Ke4 {[%clk 0:00:07.4]} 65... Qd4+ {[%clk 0:00:13.6]}
66. Kf5 {[%clk 0:00:07.7]} 66... Qxc4 {[%clk 0:00:14.1]} 67. Kg6 {[%clk
0:00:08]} 67... Qxd5 {[%clk 0:00:14.4]} 68. Kg7 {[%clk 0:00:08.3]} 68... Qxe6
{[%clk 0:00:13.6]} 69. Kh7 {[%clk 0:00:08.9]} 69... Qg4 {[%clk 0:00:13.4]} 70.
Kh6 {[%clk 0:00:09.4]} 70... Kf7 {[%clk 0:00:13.6]} 71. Kh7 {[%clk 0:00:09.8]}
71... Qh4# {[%clk 0:00:14.3]} 0-1